bitfinex-derivatives/quotes_SOLF0:USTF0_20260202
["timestamp","ask_amount","ask_price","bid_price","bid_amount"]
[1770056731448,12.29923486,104.22,104.17,12.06392136]
[1770056732248,141.76831851,104.25,104.14,158.45386405]
[1770056732249,8.6408,104.24,104.19,8.6443]
[1770056733155,12.29803486,104.24,104.19,8.6443]
[1770056735854,3.65723486,104.24,104.18,12.06302136]
[1770056737348,12.29783486,104.24,104.18,12.06302136]
[1770056737555,3.65723486,104.23,104.17,8.6461]
[1770056738152,3.65723486,104.22,104.17,8.6461]
[1770056739362,12.29933486,104.22,104.17,8.6461]
[1770056739654,12.29933486,104.22,104.16,3.41782136]
[1770056739655,3.65723486,104.21,104.16,12.06482136]
[1770056741157,3.65723486,104.21,104.15,8.6476]
[1770056741158,12.30023486,104.21,104.15,8.6476]
[1770056741457,3.65723486,104.21,104.15,8.6476]
[1770056741658,3.65723486,104.2,104.12,3.41782136]
[1770056742457,2.95013081,104.18,104.12,3.41782136]
[1770056742755,2.95013081,104.17,104.12,12.06802136]
[1770056744363,6.60736567,104.18,104.13,12.06722136]
[1770056744560,322.32,104.2,104.14,3.41782136]
[1770056744561,2.95013081,104.19,104.14,3.41782136]
[1770056744764,15.25186567,104.19,104.14,3.41782136]
[1770056745064,15.25186567,104.19,104.13,8.6494]
[1770056745558,15.25186567,104.19,104.13,12.06722136]
[1770056746259,6.60736567,104.19,104.14,8.6485]
[1770056746455,6.60736567,104.21,104.15,3.41782136]
[1770056746660,3.65723486,104.21,104.16,3.41782136]
[1770056748356,3.65723486,104.21,104.16,12.06472136]
[1770056750062,3.65723486,104.21,104.16,3.41782136]
[1770056750258,2.95013081,104.2,104.14,3.49880291]
[1770056751257,6.51344626,104.2,104.14,3.49880291]
[1770056753366,6.51344626,104.2,104.15,8.6476]
[1770056753961,8.6429,104.21,104.15,8.6476]
[1770056754166,2.95013081,104.21,104.16,3.49880291]
[1770056754662,6.51344626,104.2,104.14,12.14730291]
[1770056755362,6.51344626,104.18,104.12,12.14860291]
[1770056756463,15.15884626,104.18,104.12,12.14860291]
[1770056756668,134.4584,104.2,104.1,12.15010291]
[1770056756669,2.95013081,104.16,104.1,12.15010291]
[1770056757060,2.95013081,104.16,104.11,3.49880291]
[1770056757568,15.16024626,104.17,104.11,12.14990291]
[1770056758965,11.59563081,104.18,104.13,3.49880291]
[1770056759569,15.15894626,104.18,104.13,3.49880291]
[1770056760370,6.51344626,104.17,104.11,12.14930291]
[1770056761168,6.51344626,104.17,104.12,8.6502]
[1770056761571,15.15804626,104.19,104.13,12.14820291]
[1770056762372,6.51344626,104.18,104.13,12.14820291]
[1770056762975,6.51344626,104.17,104.11,3.49880291]
[1770056763274,2.95013081,104.16,104.11,3.49880291]
[1770056763974,2.95013081,104.14,104.09,3.49880291]
[1770056764576,2.95219755,104.14,104.09,3.49880291]
[1770056765274,6.515513,104.13,104.06,3.49880291]
[1770056765774,6.515513,104.11,104.06,3.49880291]
[1770056765974,2.95219755,104.09,104.04,3.49880291]
[1770056767281,2.95219755,104.08,104.02,12.15670291]
[1770056767779,3.56331545,104.09,104.02,12.15670291]
[1770056767780,2.95219755,104.07,104.02,12.15670291]
[1770056767981,2.95219755,104.06,104.02,3.49880291]
[1770056768286,2.95219755,104.06,104.0,3.49880291]
[1770056768474,3.56331545,104.07,104.0,3.49880291]
[1770056768882,3.56331545,104.06,104.0,3.49880291]
[1770056770276,12.21911545,104.06,104.0,3.49880291]
[1770056770672,3.56331545,104.06,104.0,3.49880291]
[1770056771585,12.21871545,104.06,104.0,3.49880291]
[1770056771779,3.56331545,104.08,104.01,3.49880291]
[1770056772183,12.21781545,104.07,104.01,3.49880291]
[1770056772673,3.56331545,104.06,103.99,3.49880291]
[1770056772876,3.56331545,104.05,103.99,3.49880291]
[1770056773671,3.56331545,104.04,103.97,3.49880291]
[1770056775376,8.6579,104.03,103.97,3.49880291]
[1770056775575,3.56331545,104.03,103.97,3.49880291]
[1770056778378,12.22111545,104.03,103.97,3.49880291]
[1770056780594,3.56331545,104.03,103.97,3.49880291]
[1770056781089,3.41876556,104.0,103.93,3.71892226]
[1770056781489,3.41876556,103.99,103.93,3.71892226]
[1770056781891,8.6605,104.0,103.93,3.71892226]
[1770056782191,8.6605,104.0,103.92,8.636e-05]
[1770056782192,3.41876556,103.98,103.92,8.636e-05]
[1770056782394,12.08076556,103.98,103.92,8.636e-05]
[1770056782788,3.41876556,103.98,103.92,12.38580862]
[1770056782994,3.41876556,103.98,103.92,3.71900862]
[1770056783597,3.41876556,103.98,103.92,8.636e-05]
[1770056784200,142.12406898,103.99,103.92,8.636e-05]
[1770056784201,12.08176556,103.97,103.92,8.636e-05]
[1770056784406,3.41876556,103.97,103.92,8.636e-05]
[1770056784606,3.41876556,103.96,103.92,8.636e-05]
[1770056784800,12.08326556,103.95,103.92,8.636e-05]
[1770056785001,12.08326556,103.95,103.88,3.71892226]
[1770056786403,3.41876556,103.95,103.89,3.71892226]
[1770056786596,3.41876556,103.97,103.9,3.71892226]
[1770056787297,3.41876556,103.97,103.91,3.71892226]
[1770056788103,3.41876556,103.97,103.92,3.71892226]
[1770056788302,19.47263454,103.99,103.92,3.71892226]
[1770056788499,3.41876556,103.98,103.92,3.71892226]
[1770056790203,3.41876556,103.98,103.89,142.24996898]
[1770056790204,3.41876556,103.98,103.89,3.71892226]
[1770056790414,3.41876556,103.96,103.89,3.71892226]
[1770056790713,3.41876556,103.96,103.87,3.71892226]
[1770056790911,3.41876556,103.94,103.84,134.9176]
[1770056791205,3.41876556,103.92,103.83,3.71892226]
[1770056791411,3.41876556,103.94,103.86,3.71892226]
[1770056791614,3.41876556,103.94,103.88,3.71892226]
[1770056791813,3.41876556,103.97,103.89,3.71892226]
[1770056792009,3.41876556,103.96,103.9,3.71892226]
[1770056792204,3.41876556,103.96,103.87,134.8762]
[1770056792505,12.08346556,103.95,103.88,3.71892226]
[1770056792703,3.41876556,103.98,103.89,3.71892226]
[1770056792903,462.13096898,103.99,103.89,3.71892226]
[1770056792904,12.08156556,103.97,103.89,3.71892226]
[1770056793410,3.41876556,103.97,103.89,3.71892226]
[1770056794208,3.41876556,103.97,103.9,3.71892226]
[1770056794606,3.41876556,103.99,103.92,3.71892226]
[1770056794806,3.41876556,104.02,103.94,3.71892226]
[1770056795607,3.41876556,104.01,103.94,3.71892226]
[1770056796710,3.41876556,104.03,103.95,3.71892226]
[1770056797811,12.07666556,104.03,103.95,12.38332226]
[1770056798012,12.07666556,104.03,103.96,3.71892226]
[1770056798712,3.41876556,104.03,103.96,12.38242226]
[1770056798910,3.41876556,104.03,103.96,3.71892226]
[1770056799317,12.07676556,104.03,103.96,3.71892226]
[1770056800016,3.41876556,104.03,103.96,12.38232226]
[1770056800415,3.41876556,104.03,103.97,3.71892226]
[1770056800809,3.41876556,104.05,103.98,3.71892226]
[1770056801013,3.41876556,104.05,103.99,3.71892226]
[1770056801213,3.41876556,104.07,103.99,3.71892226]
[1770056801410,3.41876556,104.07,104.0,3.71892226]
[1770056802019,3.41876556,104.07,104.01,3.71892226]
[1770056802412,3.41876556,104.09,104.01,3.71892226]
[1770056803013,3.41876556,104.11,104.03,3.71892226]
[1770056803218,323.37876556,104.13,104.04,138.37962226]
[1770056803418,3.41876556,104.12,104.05,3.71892226]
[1770056806312,134.5358,104.14,104.07,3.71892226]
[1770056806313,3.41876556,104.14,104.07,3.71892226]
[1770056806917,3.41876556,104.14,104.07,12.37282226]
[1770056807118,3.41876556,104.14,104.08,3.71892226]
[1770056807516,3.41876556,104.14,104.06,3.71892226]
[1770056807722,3.41876556,104.13,104.06,3.71892226]
[1770056808120,3.41876556,104.12,104.03,3.71892226]
[1770056808520,3.41876556,104.12,104.04,3.67567672]
[1770056809418,12.06926556,104.12,104.04,12.33227672]
[1770056810025,3.72986869,104.11,104.04,12.33227672]
[1770056810916,3.72986869,104.1,104.01,3.5748711]
[1770056812024,141.96826898,104.11,104.01,3.5748711]
[1770056812025,3.72986869,104.08,104.02,8.6583]
[1770056812918,3.72986869,104.07,104.01,3.5748711]
[1770056813722,3.72986869,104.07,104.01,12.2342711]
[1770056813924,3.72986869,104.07,104.01,3.5748711]
[1770056814225,7.39206898,104.09,104.01,3.5748711]
[1770056814419,11.12193767,104.09,104.01,3.5748711]
[1770056815323,3.72986869,104.08,104.02,8.6585]
[1770056815522,3.72986869,104.08,104.01,3.5748711]
[1770056816523,12.38346869,104.08,104.01,3.5748711]
[1770056817621,12.38346869,104.08,104.02,8.6586]
[1770056817919,12.38346869,104.08,104.02,12.2334711]
[1770056818826,3.72986869,104.08,104.02,12.2334711]
[1770056820317,3.72986869,104.1,104.03,3.5748711]
[1770056821024,12.38186869,104.1,104.04,8.6569]
[1770056821329,3.72986869,104.1,104.04,3.5748711]
[1770056821524,7.39206898,104.13,104.04,12.2309711]
[1770056821525,12.38096869,104.12,104.04,12.2309711]
[1770056821822,3.72986869,104.1,104.02,386.9348711]
[1770056822419,3.72986869,104.1,104.03,8.6578]
[1770056822730,3.72986869,104.08,104.0,3.5748711]
[1770056823822,3.72986869,104.06,103.98,3.5748711]
[1770056824024,3.72986869,104.04,103.98,3.5748711]
[1770056824222,3.72986869,104.04,103.94,7.39206898]
[1770056824223,3.72986869,104.04,103.95,3.5748711]
[1770056824622,8.6582,104.03,103.96,8.6629]
[1770056824927,3.72986869,104.04,103.96,3.5748711]
[1770056825717,12.38756869,104.04,103.97,8.6626]
[1770056825923,3.72986869,104.04,103.98,3.5748711]
[1770056826326,3.72986869,104.04,103.98,12.2364711]
[1770056826722,3.72986869,104.04,103.98,3.5748711]
[1770056828328,11.12601761,104.06,103.98,3.5748711]
[1770056828724,19.78131761,104.06,103.99,3.5748711]
[1770056828931,3.72986869,104.06,104.0,3.5748711]
[1770056830332,3.72986869,104.06,104.01,8.6594]
[1770056831029,3.72986869,104.07,104.01,12.2342711]
[1770056831226,3.72986869,104.05,103.97,3.5748711]
[1770056831432,142.03634892,104.06,103.97,3.5748711]
[1770056831433,11.12601761,104.04,103.97,3.5748711]
[1770056831734,12.38856869,104.02,103.95,12.2392711]
[1770056832526,3.72986869,104.02,103.96,12.2383711]
[1770056833531,3.72986869,104.02,103.94,3.5748711]
[1770056835434,12.38866869,104.02,103.95,8.6644]
[1770056835635,12.38866869,104.02,103.95,12.2392711]
[1770056836434,3.72986869,104.04,103.97,3.5748711]
[1770056837330,3.72986869,104.04,103.98,8.6619]
[1770056837530,3.72986869,104.04,103.97,3.5748711]
[1770056837931,12.38486869,104.07,104.0,3.5748711]
[1770056838128,3.72986869,104.07,104.0,3.5748711]
[1770056838836,3.72986869,104.07,104.02,8.6585]
[1770056839036,3.72986869,104.09,104.02,3.5748711]
[1770056839230,12.38276869,104.09,104.02,12.2333711]
[1770056839628,12.38276869,104.09,104.0,3.5748711]
[1770056839629,3.72986869,104.08,104.0,3.5748711]
[1770056840932,3.4119588,104.05,103.96,138.19259992]
[1770056841138,3.4119588,104.04,103.96,3.43319992]
[1770056841638,3.4119588,104.04,103.97,3.43319992]
[1770056842338,3.4119588,104.04,103.98,8.6619]
[1770056843440,3.4119588,104.04,103.99,8.6609]
[1770056843637,3.4119588,104.06,103.98,3.43319992]
[1770056844329,12.0679588,104.06,104.0,8.6603]
[1770056845229,3.4119588,104.06,104.01,8.6595]
[1770056845634,3.4119588,104.06,103.99,3.43319992]
[1770056846241,12.0672588,104.06,104.0,8.6602]
[1770056846940,12.0681588,104.05,103.99,3.43319992]
[1770056847544,12.0681588,104.05,103.99,12.09409992]
[1770056849743,12.0681588,104.05,103.99,3.43319992]
[1770056851341,12.0681588,104.05,103.99,12.09409992]
[1770056854946,8.657,104.04,103.99,3.43319992]
[1770056855243,3.4119588,104.05,103.99,3.43319992]
[1770056855444,3.4119588,104.07,103.99,3.43319992]
[1770056855838,12.0664588,104.07,104.01,8.6594]
[1770056859749,12.0664588,104.07,104.02,8.6586]
[1770056860540,12.0664588,104.07,104.01,8.6593]
[1770056862949,3.4119588,104.07,104.02,8.6586]
[1770056863345,3.4119588,104.07,104.01,3.43319992]
[1770056863544,12.0672588,104.06,104.01,3.43319992]
[1770056863846,3.4119588,104.06,104.01,3.43319992]
[1770056864243,12.0672588,104.06,104.01,3.43319992]
[1770056865048,3.4119588,104.06,104.01,12.09249992]
[1770056865440,3.4119588,104.06,104.01,3.43319992]
[1770056866644,3.4119588,104.06,104.0,8.6601]
[1770056866844,3.4119588,104.06,104.0,12.09329992]
[1770056868244,3.4119588,104.06,104.0,3.43319992]
[1770056868450,3.54780157,104.04,103.96,138.18149107]
[1770056868641,3.54780157,104.04,103.96,3.41649107]
[1770056868846,7.39614892,104.05,103.96,3.41649107]
[1770056868847,3.54780157,104.03,103.96,3.41649107]
[1770056869448,12.20570157,104.03,103.96,12.07929107]
[1770056869850,3.54780157,104.03,103.96,3.41649107]
[1770056870752,3.54780157,104.03,103.98,12.37400948]
[1770056873157,3.58329553,104.05,103.99,12.37280948]
[1770056874354,12.23959553,104.05,103.99,12.37280948]
[1770056875158,3.58329553,104.05,103.99,12.37280948]
[1770056876757,3.58329553,104.05,104.0,8.6602]
[1770056876957,3.58329553,104.05,104.0,12.37240948]
[1770056880660,12.23779553,104.07,104.01,12.37160948]
[1770056881562,3.58329553,104.06,104.01,12.37160948]
[1770056882358,3.58329553,104.08,104.02,12.37080948]
[1770056883861,3.58329553,104.07,104.02,12.37080948]
[1770056885455,12.23779553,104.07,104.02,3.71220948]
[1770056885669,3.58329553,104.04,103.96,3.71220948]
[1770056886166,3.58329553,104.03,103.96,12.37500948]
[1770056886665,10.97944445,104.03,103.96,12.37500948]
[1770056887171,10.97944445,104.03,103.97,12.37470948]
[1770056888558,3.58329553,104.01,103.95,3.71220948]
[1770056888761,3.58329553,103.99,103.92,3.71220948]
[1770056889161,163.4888,104.03,103.93,3.71220948]
[1770056889367,5.98801768,104.02,103.93,3.71220948]
[1770056889558,3.58329553,104.02,103.93,3.71220948]
[1770056890363,12.24289553,104.01,103.93,3.71220948]
[1770056890668,3.58329553,104.0,103.93,3.71220948]
[1770056891163,3.58329553,103.99,103.93,8.6661]
[1770056891368,3.58329553,103.99,103.93,12.37830948]
[1770056893968,3.58329553,103.99,103.94,3.71220948]
[1770056898167,7.39876277,104.01,103.95,3.71220948]
[1770056898168,3.58329553,104.01,103.95,3.71220948]
[1770056898471,6.54324772,104.01,103.95,3.71220948]
[1770056899766,2.95995219,104.0,103.95,3.71220948]
[1770056900265,2.95995219,103.99,103.95,3.71220948]
[1770056902378,2.95995219,103.99,103.94,8.665]
[1770056903177,2.95995219,103.99,103.94,12.09552211]
[1770056903373,6.4381248,103.99,103.94,3.43052211]
[1770056903578,2.95995219,103.97,103.92,3.43052211]
[1770056903772,134.7172,104.0,103.91,3.43052211]
[1770056903773,6.4381248,103.96,103.91,3.43052211]
[1770056905880,6.4381248,103.95,103.9,8.6685]
[1770056906082,2.95995219,103.94,103.89,3.43052211]
[1770056906380,2.95995219,103.93,103.88,12.10012211]
[1770056906880,6.4381248,103.94,103.88,12.10012211]
[1770056907374,2.95995219,103.92,103.86,3.43052211]
[1770056907979,2.95995219,103.92,103.87,12.10162211]
[1770056908371,3.47817261,103.93,103.87,12.10162211]
[1770056908972,3.47817261,103.93,103.88,8.6702]
[1770056909777,3.47817261,103.93,103.87,3.43052211]
[1770056913178,3.47817261,103.93,103.88,3.43052211]
[1770056915585,3.47817261,103.95,103.88,12.10052211]
[1770056915883,3.47817261,103.95,103.89,3.43052211]
[1770056916178,3.47817261,103.93,103.86,3.43052211]
[1770056916384,3.47817261,103.91,103.84,3.43052211]
[1770056916785,3.47817261,103.89,103.82,12.10502211]
[1770056917588,7.41162942,103.9,103.82,3.43052211]
[1770056917589,3.47817261,103.88,103.82,3.43052211]
[1770056917982,3.47817261,103.87,103.79,3.43052211]
[1770056918187,3.47817261,103.87,103.8,3.43052211]
[1770056918387,3.47817261,103.9,103.83,3.43052211]
[1770056918982,3.47817261,103.88,103.81,3.43052211]
[1770056919187,8.6713,103.87,103.81,12.10662211]
[1770056919790,12.14947261,103.87,103.81,12.10662211]
[1770056920785,3.47817261,103.87,103.81,12.10662211]
[1770056921285,12.14937261,103.87,103.81,3.43052211]
[1770056921788,8.6723,103.86,103.81,3.43052211]
[1770056921985,12.15047261,103.86,103.79,3.43052211]
[1770056922684,8.6732,103.85,103.79,3.43052211]
[1770056922892,3.47817261,103.85,103.79,3.43052211]
[1770056923493,134.8896,103.87,103.79,3.43052211]
[1770056923494,3.47817261,103.87,103.79,3.43052211]
[1770056923784,3.47817261,103.87,103.81,8.676]
[1770056923990,3.47817261,103.87,103.81,12.10652211]
[1770056924184,12.14947261,103.87,103.81,3.43052211]
[1770056924782,8.6722,103.86,103.81,3.43052211]
[1770056924982,8.6722,103.86,103.77,425.9137]
[1770056924983,3.47817261,103.85,103.77,8.6789]
[1770056925183,3.47817261,103.84,103.77,12.10942211]
[1770056925387,3.47817261,103.84,103.78,3.43052211]
[1770056925992,3.47817261,103.84,103.79,3.43052211]
[1770056927095,3.47817261,103.86,103.8,3.43052211]
[1770056927286,3.47817261,103.86,103.78,3.43052211]
[1770056928293,8.6729,103.85,103.78,12.10912211]
[1770056928495,2.96953806,103.84,103.78,12.10912211]
[1770056928693,8.6729,103.85,103.78,12.10912211]
[1770056928694,2.96953806,103.85,103.79,3.64606559]
[1770056928894,2.96953806,103.84,103.79,12.32376559]
[1770056929398,2.96953806,103.84,103.79,3.64606559]
[1770056931000,3.77011997,103.83,103.77,12.11031406]
[1770056931199,6.73965803,103.83,103.78,3.43081406]
[1770056932802,15.41445803,103.83,103.78,3.43081406]
[1770056933003,3.77011997,103.83,103.78,3.43081406]
[1770056933505,6.73965803,103.83,103.78,3.43081406]
[1770056934400,3.77011997,103.83,103.78,12.10941406]
[1770056934698,6.73965803,103.85,103.79,3.43081406]
[1770056935002,2.96953806,103.84,103.79,3.43081406]
[1770056936705,12.44291997,103.85,103.79,3.43081406]
[1770056936706,6.73965803,103.85,103.79,3.43081406]
[1770056937905,6.73965803,103.85,103.8,8.6769]
[1770056939002,3.77011997,103.89,103.81,8.676]
[1770056939305,2.96953806,103.86,103.81,12.10681406]
[1770056939704,6.73965803,103.87,103.81,12.10681406]
[1770056940706,2.96953806,103.85,103.81,3.43081406]
[1770056940904,2.96953806,103.86,103.81,3.43081406]
[1770056941604,15.41095803,103.87,103.81,12.10681406]
[1770056942602,2.96953806,103.86,103.81,12.10681406]
[1770056942908,15.41095803,103.87,103.81,12.10681406]
[1770056943104,3.77011997,103.87,103.82,8.6752]
[1770056943409,6.73965803,103.87,103.82,8.6752]
[1770056944408,6.73965803,103.87,103.82,12.10601406]
[1770056944609,3.77011997,103.89,103.83,3.43081406]
[1770056944908,6.73965803,103.89,103.83,3.43081406]
[1770056945105,3.77011997,103.89,103.84,8.6733]
[1770056945304,3.77011997,103.92,103.86,3.43081406]
[1770056945510,3.77011997,103.92,103.86,6.40035212]
[1770056945709,2.96953806,103.91,103.86,3.43081406]
[1770056946310,6.73965803,103.92,103.87,8.671]
[1770056946706,3.77011997,103.92,103.87,8.671]
[1770056946909,3.77011997,103.92,103.87,12.10181406]
[1770056947108,6.73965803,103.92,103.87,12.10181406]
[1770056948104,6.73965803,103.91,103.86,8.6719]
[1770056948310,6.73965803,103.9,103.85,3.43081406]
[1770056948508,6.73618491,103.9,103.85,3.43081406]
[1770056948707,3.77011997,103.9,103.85,12.10341406]
[1770056949812,6.73618491,103.9,103.85,12.10341406]
[1770056951409,6.73618491,103.9,103.85,3.43081406]
[1770056952114,3.77011997,103.9,103.85,3.43081406]
[1770056953313,3.77011997,103.9,103.85,12.10341406]
[1770056955010,6.73618491,103.92,103.86,3.43081406]
[1770056955216,3.77011997,103.92,103.86,6.396879]
[1770056955518,2.96606494,103.93,103.84,134.9163]
[1770056955519,2.96606494,103.93,103.87,3.43081406]
[1770056955711,2.96606494,103.93,103.87,12.10191406]
[1770056956320,15.40218491,103.94,103.88,3.43081406]
[1770056956617,15.40218491,103.94,103.88,12.10111406]
[1770056957010,3.77011997,103.96,103.9,6.396879]
[1770056957316,6.73618491,103.98,103.92,3.43081406]
[1770056957715,2.96606494,103.97,103.92,12.09741406]
[1770056957916,6.73618491,103.98,103.92,12.09741406]
[1770056960920,6.70294875,103.96,103.9,12.28248954]
[1770056961115,6.70294875,103.96,103.9,3.61468954]
[1770056961419,6.70294875,103.96,103.91,8.6676]
[1770056961614,6.70294875,103.95,103.9,3.61468954]
[1770056961816,2.96606494,103.94,103.88,3.61468954]
[1770056963220,6.70294875,103.95,103.89,3.61468954]
[1770056963417,6.70294875,103.95,103.89,12.28378954]
[1770056963618,3.73688381,103.97,103.9,3.61468954]
[1770056963821,6.70294875,103.97,103.91,3.61468954]
[1770056964019,3.73688381,103.96,103.91,3.61468954]
[1770056964419,2.96606494,103.94,103.89,3.61468954]
[1770056965322,2.96606494,103.94,103.89,12.28408954]
[1770056965724,15.36744875,103.95,103.89,12.28408954]
[1770056966927,6.70294875,103.95,103.9,8.6683]
[1770056967531,3.73688381,103.95,103.91,8.6675]
[1770056967724,6.70294875,103.99,103.92,3.61468954]
[1770056967924,2.96606494,103.98,103.92,6.58075448]
[1770056968126,15.36514875,103.98,103.92,12.28158954]
[1770056968327,6.70294875,103.98,103.92,12.28158954]
[1770056969331,6.70294875,103.96,103.89,3.61468954]
[1770056969523,6.70294875,103.96,103.9,3.61468954]
[1770056969719,6.70294875,103.96,103.91,8.6676]
[1770056969920,2.96606494,103.95,103.9,3.61468954]
[1770056971235,2.96606494,103.94,103.88,12.28488954]
[1770056972326,12.40148381,103.95,103.88,12.28488954]
[1770056972533,12.40148381,103.95,103.89,8.6693]
[1770056975936,12.40018381,103.97,103.9,12.28328954]
[1770056976136,3.73688381,103.96,103.9,12.28328954]
[1770056978141,3.73688381,103.96,103.9,3.61468954]
[1770056978340,3.73688381,103.98,103.92,3.61468954]
[1770056981239,3.73688381,103.98,103.93,8.666]
[1770056982244,3.73688381,103.98,103.93,12.28068954]
[1770056983435,3.73688381,103.98,103.93,3.61468954]
[1770056983834,12.39798381,104.0,103.93,3.61468954]
[1770056985446,12.39798381,104.0,103.94,8.6652]
[1770056985845,12.39798381,104.0,103.95,3.61468954]
[1770056986435,8.6611,104.0,103.95,3.61468954]
[1770056986643,3.73688381,104.02,103.96,3.61468954]
[1770056987544,12.39558381,104.02,103.96,3.61468954]
[1770056988843,12.39558381,104.02,103.96,12.27818954]
[1770056992454,2.95974144,104.01,103.96,12.27818954]
[1770056993450,15.35532525,104.02,103.96,12.27818954]
[1770056996254,2.95974144,104.01,103.96,12.27818954]
[1770056997552,15.35532525,104.02,103.96,12.27818954]
[1770056997752,15.27404418,104.01,103.96,3.61468954]
[1770056997951,3.65470274,104.01,103.96,3.61468954]
[1770056998152,6.61444418,104.01,103.96,3.61468954]
[1770056999459,6.61444418,104.01,103.96,12.27768954]
[1770057000253,6.61444418,104.0,103.94,12.35758927]
[1770057000758,6.61444418,104.0,103.95,3.69298927]
[1770057000961,6.61444418,104.0,103.95,12.35678927]
[1770057001651,2.95974144,104.01,103.96,12.35648927]
[1770057001956,15.27324418,104.02,103.97,3.69298927]
[1770057002457,6.61444418,104.02,103.97,12.35538927]
[1770057003057,6.61444418,104.02,103.97,8.6624]
[1770057003356,6.61444418,104.02,103.95,6.65273071]
[1770057003357,2.95974144,104.01,103.96,12.35648927]
[1770057004256,15.27324418,104.02,103.96,12.35648927]
[1770057004852,3.65470274,104.01,103.96,12.35648927]
[1770057005053,15.27394418,104.01,103.96,12.35648927]
[1770057005253,6.61444418,104.01,103.96,3.69298927]
[1770057005456,6.61444418,104.0,103.95,8.6643]
[1770057005756,6.61444418,104.0,103.95,12.35728927]
[1770057006366,2.95974144,104.01,103.96,12.35658927]
[1770057006663,15.27314418,104.02,103.96,12.35658927]
[1770057006861,6.61444418,104.01,103.96,12.35658927]
[1770057007456,3.65470274,104.01,103.96,12.35658927]
[1770057007659,6.61444418,104.01,103.96,3.69298927]
[1770057009568,6.61444418,104.01,103.96,12.35648927]
[1770057010259,6.61444418,104.01,103.97,8.6626]
[1770057010460,6.61419035,104.01,103.97,8.6626]
[1770057010660,6.61419035,104.01,103.96,3.69298927]
[1770057010867,6.61419035,104.01,103.96,12.35648927]
[1770057011865,3.65470274,104.01,103.96,12.35648927]
[1770057012367,6.61419035,104.01,103.96,12.35648927]
[1770057012759,6.61419035,104.01,103.96,3.69298927]
[1770057013060,2.95948761,103.98,103.92,3.69298927]
[1770057013461,6.61419035,103.99,103.92,3.69298927]
[1770057013966,6.61419035,103.99,103.93,3.69298927]
[1770057014466,6.61419035,103.99,103.94,8.6652]
[1770057014766,3.65470274,104.01,103.96,3.69298927]
[1770057015867,3.65470274,104.01,103.96,12.35598927]
[1770057016662,3.65470274,104.05,104.0,3.69298927]
[1770057017066,2.95948761,104.04,104.0,8.6596]
[1770057017260,6.61419035,104.05,104.0,8.6596]
[1770057017669,6.61419035,104.04,103.97,6.65247688]
[1770057017967,2.95948761,104.01,103.97,3.69298927]
[1770057018863,6.61419035,104.02,103.97,3.69298927]
[1770057019370,6.61419035,104.02,103.97,12.35568927]
[1770057021672,6.59261526,104.01,103.95,12.09942928]
[1770057022273,3.63312765,104.01,103.96,12.09902928]
[1770057023974,2.95948761,104.02,103.97,8.6627]
[1770057024373,2.95948761,104.02,103.97,12.09842928]
[1770057025574,6.59261526,104.03,103.97,12.09842928]
[1770057025773,6.59261526,104.03,103.98,8.6617]
[1770057027476,2.95948761,104.02,103.97,3.43572928]
[1770057028470,15.25061526,104.03,103.97,3.43572928]
[1770057029173,6.59261526,104.02,103.97,3.43572928]
[1770057031371,6.59261526,104.02,103.97,12.09822928]
[1770057031572,3.63312765,104.02,103.97,12.09822928]
[1770057034882,6.59261526,104.02,103.97,12.09822928]
[1770057035576,15.25131526,104.02,103.97,3.43572928]
[1770057040872,3.63312765,104.0,103.96,8.6635]
[1770057041075,12.29182765,104.02,103.97,3.43572928]
[1770057041276,6.59261526,104.04,103.98,3.43572928]
[1770057041776,15.24891526,104.05,103.99,12.09612928]
[1770057042081,423.2959,104.1,103.99,12.09612928]
[1770057042082,6.59261526,104.07,104.01,3.43572928]
[1770057042289,3.63312765,104.06,104.01,3.43572928]
[1770057042481,6.59261526,104.06,104.01,12.09502928]
[1770057042677,6.59261526,104.04,103.99,3.43572928]
[1770057042879,134.6134,104.08,103.97,3.43572928]
[1770057042880,6.59261526,104.03,103.97,3.43572928]
[1770057044373,3.63312765,104.03,103.98,12.09762928]
[1770057044678,6.59261526,104.05,103.99,3.43572928]
[1770057045582,6.59261526,104.05,104.0,12.09592928]
[1770057045583,3.63312765,104.05,104.0,12.09592928]
[1770057046183,15.24721526,104.07,104.01,12.09502928]
[1770057046384,3.63312765,104.06,104.01,12.09502928]
[1770057046582,3.63312765,104.06,104.01,3.43572928]
[1770057046780,3.63312765,104.06,104.01,12.09522928]
[1770057047687,3.63312765,104.06,104.02,8.6585]
[1770057047885,15.24641526,104.08,104.02,12.09422928]
[1770057048183,6.59261526,104.07,104.02,3.43572928]
[1770057049080,3.48396207,104.09,104.04,3.5066978]
[1770057049275,6.44344968,104.09,104.04,3.5066978]
[1770057050877,3.48396207,104.09,104.04,3.5066978]
[1770057051077,6.5667392,104.11,104.04,3.5066978]
[1770057051483,3.60725159,104.1,104.04,3.5066978]
[1770057052287,3.60725159,104.1,104.05,12.1240247]
[1770057052990,6.5667392,104.12,104.06,12.1230247]
[1770057053483,3.60725159,104.11,104.06,3.4679247]
[1770057053687,6.5667392,104.11,104.06,3.4679247]
[1770057053887,6.5667392,104.1,104.05,8.6561]